bitfinex-derivatives/quotes_ETHF0:USTF0_20250426
["timestamp","ask_amount","ask_price","bid_price","bid_amount"]
[1745678756932,1.92756,1793.2,1793.1,5.2861]
[1745678757740,1.92756,1793.2,1793.1,1.5811]
[1745678758340,3.54546,1793.2,1793.1,1.5811]
[1745678758539,4.32274,1793.3,1793.1,1.5811]
[1745678758742,4.32274,1793.3,1793.2,1.6493]
[1745678759144,4.32274,1793.3,1793.2,3.2535]
[1745678760651,3.2078,1793.3,1793.2,3.2535]
[1745678761047,4.3227,1793.3,1793.2,3.2535]
[1745678762450,1.11502,1793.2,1793.0,3.2078]
[1745678762651,1.11502,1793.2,1793.1,3.3315]
[1745678764047,3.2078,1793.3,1793.1,3.3315]
[1745678764256,3.2078,1793.3,1793.2,1.7448]
[1745678764455,4.3227,1793.3,1793.2,1.7448]
[1745678766652,3.2078,1793.3,1793.2,2.85976]
[1745678766861,5.12722,1793.5,1793.3,1.11489]
[1745678767062,1.91942,1793.5,1793.4,2.4443]
[1745678767260,1.91942,1793.5,1793.4,3.3188]
[1745678767465,1.11476,1793.6,1793.4,4.43364]
[1745678767654,1.11476,1793.6,1793.5,1.6302]
[1745678768468,2.4733,1793.6,1793.1,3.705]
[1745678768767,0.8282,1793.5,1793.3,1.6302]
[1745678768969,1.11487,1793.4,1793.3,1.6302]
[1745678771270,1.11479,1793.5,1793.3,1.6302]
[1745678771459,1.11479,1793.5,1793.3,2.74506]
[1745678771856,1.11479,1793.5,1793.4,1.6443]
[1745678772469,1.11479,1793.5,1793.4,2.75914]
[1745678773268,1.1145,1794.0,1793.5,2.78695]
[1745678773469,1.11444,1794.1,1793.9,1.11448]
[1745678773769,1.11444,1794.1,1794.0,2.5998]
[1745678774469,2.79824,1794.1,1794.0,2.5998]
[1745678777573,1.11438,1794.2,1794.0,3.71425]
[1745678777774,1.11438,1794.2,1794.1,1.7125]
[1745678778667,4.32212,1794.3,1794.1,1.7125]
[1745678778970,1.11434,1794.2,1794.1,1.7125]
[1745678780576,3.70084,1794.2,1794.1,1.7125]
[1745678782378,2.84864,1794.2,1794.1,1.7125]
[1745678782576,3.2078,1794.3,1794.1,1.7125]
[1745678782777,1.11434,1794.2,1794.1,1.7125]
[1745678783281,1.11434,1794.2,1794.1,2.8269]
[1745678783481,3.2078,1794.3,1794.2,1.11434]
[1745678783778,3.2078,1794.3,1794.2,2.78664]
[1745678784167,3.2078,1794.3,1794.2,8.09464]
[1745678784373,3.2078,1794.3,1794.2,13.09464]
[1745678784576,4.32186,1794.7,1794.2,15.1881]
[1745678784783,4.32186,1794.7,1794.3,5.4028]
[1745678784784,1.11413,1794.6,1794.3,5.4028]
[1745678785077,3.2078,1794.7,1794.5,1.11413]
[1745678785277,1.11409,1794.6,1794.5,1.11413]
[1745678785478,4.32187,1794.7,1794.5,1.11413]
[1745678787482,3.2078,1794.7,1794.6,1.11409]
[1745678788684,4.32189,1794.7,1794.5,5.308]
[1745678788880,4.32189,1794.7,1794.5,6.42213]
[1745678790086,4.32189,1794.7,1794.6,1.11409]
[1745678790379,1.11409,1794.7,1794.5,6.42213]
[1745678791484,1.11409,1794.7,1794.6,1.11409]
[1745678791785,1.11409,1794.7,1794.5,5.308]
[1745678791786,1.11409,1794.6,1794.5,5.308]
[1745678791986,3.57489,1794.6,1794.5,5.308]
[1745678792287,1.11415,1794.5,1794.4,0.8176]
[1745678792582,3.57175,1794.5,1794.4,0.8176]
[1745678796384,2.4576,1794.5,1794.0,3.2078]
[1745678796686,1.11438,1794.2,1793.9,1.11447]
[1745678797283,1.1144,1794.1,1794.0,1.6439]
[1745678798783,1.91386,1794.2,1794.0,2.75834]
[1745678799090,1.91388,1794.2,1794.0,8.06636]
[1745678799387,1.91388,1794.2,1794.1,1.6439]
[1745678801683,0.7995,1794.2,1793.9,0.8563]
[1745678801990,2.77795,1794.1,1793.9,2.4757]
[1745678802190,2.77795,1794.1,1794.0,1.6194]
[1745678805287,2.77795,1794.1,1794.0,6.9274]
[1745678810392,3.63605,1794.1,1794.0,5.308]
[1745678810890,11.84385,1794.1,1794.0,5.308]
[1745678811198,1.11465,1793.7,1793.6,6.4735]
[1745678811787,1.11465,1793.7,1793.6,3.2657]
[1745678811995,2.72555,1793.7,1793.6,3.2657]
[1745678813894,1.11463,1793.8,1793.6,4.38039]
[1745678814096,1.11463,1793.8,1793.7,1.6538]
[1745678814296,2.4131,1794.0,1793.7,2.76844]
[1745678814494,1.11455,1793.9,1793.7,2.76844]
[1745678814794,1.11455,1793.9,1793.8,1.6538]
[1745678815198,1.11455,1793.9,1793.8,6.9618]
[1745678823598,3.2078,1794.3,1793.8,10.6638]
[1745678823795,5.7778,1794.3,1793.9,4.36358]
[1745678823995,1.11441,1794.1,1794.0,1.6633]
[1745678824198,1.11441,1794.1,1794.0,6.9713]
[1745678828100,1.11409,1794.7,1794.4,1.11418]
[1745678828301,1.6636,1794.7,1794.5,4.8803]
[1745678828602,4.0729,1794.8,1794.6,1.6725]
[1745678828803,3.2078,1794.8,1794.7,1.11403]
[1745678828998,3.2078,1794.8,1794.7,4.81503]
[1745678829203,3.2247179,1795.6,1794.7,58.0168]
[1745678829408,1.11374,1795.2,1795.0,1.11383]
[1745678829704,1.11374,1795.2,1795.1,1.6725]
[1745678829909,1.6636,1795.3,1795.1,4.8803]
[1745678830201,1.11362,1795.4,1795.1,4.8803]
[1745678830399,1.11366,1795.3,1795.2,1.6845]
[1745678832005,1.93467,1795.5,1795.2,2.79818]
[1745678832206,3.62827,1795.5,1795.2,2.79818]
[1745678832498,3.62827,1795.5,1795.3,1.6845]
[1745678832906,1.1136,1795.4,1795.3,1.6845]
[1745678833403,2.7836,1795.4,1795.3,1.6845]
[1745678834302,2.7836,1795.4,1795.3,4.8923]
[1745678834901,0.8211,1795.5,1795.3,6.00596]
[1745678835102,1.11349,1795.6,1795.3,6.00596]
[1745678835103,1.11349,1795.6,1795.4,1.1136]
[1745678835308,1.11349,1795.6,1795.5,3.2078]
[1745678835905,1.11349,1795.6,1795.5,4.9426]
[1745678836406,1.11349,1795.6,1795.5,1.7348]
[1745678838209,1.11349,1795.6,1795.5,4.9426]
[1745678838711,1.11349,1795.6,1795.5,1.7348]
[1745678840506,1.11349,1795.6,1795.5,4.9426]
[1745678841209,2.78346,1795.7,1795.5,4.9426]
[1745678841403,2.78346,1795.7,1795.5,6.05612]
[1745678841604,2.78346,1795.7,1795.6,1.5876]
[1745678841809,1.67,1795.7,1795.6,2.70107]
[1745678842009,1.11335,1795.8,1795.6,2.70107]
[1745678842212,1.11335,1795.8,1795.7,1.5876]
[1745678842710,2.84265,1795.8,1795.7,1.5876]
[1745678843106,2.84265,1795.8,1795.7,4.7954]
[1745678843510,1.7293,1795.8,1795.7,5.90881]
[1745678844011,2.84265,1795.8,1795.7,5.90881]
[1745678844211,2.84265,1795.8,1795.7,4.7954]
[1745678846099,1.11333,1795.9,1795.7,5.90881]
[1745678846313,1.11329,1795.9,1795.8,1.6602]
[1745678846606,3.2078,1796.1,1795.8,1.6602]
[1745678846810,1.11312,1796.2,1796.0,4.32101]
[1745678847016,1.11312,1796.2,1796.1,1.6602]
[1745678849215,1.11316,1796.1,1796.0,3.2078]
[1745678849514,2.75496,1796.1,1796.0,4.9346]
[1745678850013,1.6418,1796.1,1796.0,4.9346]
[1745678850509,0.8169,1796.4,1796.0,4.9346]
[1745678850715,1.11312,1796.2,1796.1,1.7268]
[1745678851017,1.6418,1796.3,1796.0,3.2078]
[1745678851018,1.11316,1796.1,1796.0,3.2078]
[1745678851313,1.95366,1796.1,1796.0,3.2078]
[1745678851713,3.56096,1796.1,1796.0,3.2078]
[1745678852515,3.56096,1796.1,1796.0,4.9032]
[1745678852713,2.4478,1796.1,1796.0,4.9032]
[1745678852915,3.56096,1796.1,1796.0,4.9032]
[1745678853415,1.11315,1796.2,1796.0,6.01642]
[1745678853618,1.11315,1796.2,1796.1,1.6954]
[1745678853812,2.4078,1796.3,1796.1,1.6954]
[1745678854118,1.90309,1796.4,1796.2,4.3209]
[1745678854311,1.11304,1796.3,1796.2,3.2078]
[1745678854509,2.71734,1796.3,1796.2,4.8768]
[1745678855818,2.71734,1796.3,1796.0,0.8046]
[1745678855819,1.11316,1796.1,1796.0,4.0124]
[1745678856018,1.11316,1796.1,1796.0,6.9048]
[1745678856217,6.42116,1796.1,1796.0,3.697]
[1745678856515,8.02546,1796.1,1796.0,3.697]
[1745678856717,8.02546,1796.1,1796.0,6.9048]
[1745678856916,8.02546,1796.1,1796.0,3.697]
[1745678857116,8.02546,1796.1,1796.0,5.366]
[1745678857318,2.71746,1796.1,1796.0,5.366]
[1745678857908,1.11316,1796.1,1796.0,5.366]
[1745678858113,1.11311,1796.2,1796.0,9.68699]
[1745678858313,1.11305,1796.3,1796.1,4.33874]
[1745678858523,1.11305,1796.3,1796.2,1.6488]
[1745678858715,2.85415,1796.3,1796.2,1.6488]
[1745678862131,1.1131,1796.2,1796.1,1.5768]
[1745678862324,2.7347,1796.2,1796.1,1.5768]
[1745678862524,1.11308,1796.3,1796.1,4.41886]
[1745678862732,1.11308,1796.3,1796.2,4.9367]
[1745678863226,1.11302,1796.4,1796.2,6.0498]
[1745678863432,3.2283,1796.7,1796.3,1.7289]
[1745678863733,1.11298,1796.4,1796.3,5.4239]
[1745678864537,2.71576,1796.5,1796.3,6.53694]
[1745678864834,2.71576,1796.5,1796.4,1.6484]
[1745678865332,1.11298,1796.4,1796.3,3.695]
[1745678865539,3.56968,1796.4,1796.3,5.3434]
[1745678865742,3.56968,1796.4,1796.3,3.695]
[1745678867143,1.11296,1796.5,1796.3,3.695]
[1745678867339,1.11296,1796.5,1796.4,1.6946]
[1745678867738,2.85176,1796.5,1796.4,1.6946]
[1745678868240,5.308,1796.5,1796.4,2.80758]
[1745678868544,5.308,1796.5,1796.4,3.65168]
[1745678869242,1.9658,1796.6,1796.4,3.65168]
[1745678869444,1.9658,1796.6,1796.5,1.6946]
[1745678872942,2.85161,1796.7,1796.5,2.80751]
[1745678873147,1.11281,1796.7,1796.5,3.62401]
[1745678873451,1.11279,1796.7,1796.6,4.9272]
[1745678873840,1.98076,1796.8,1796.6,6.04005]
[1745678874042,3.55856,1796.8,1796.7,1.7194]
[1745678874253,8.86656,1796.8,1796.7,1.7194]
[1745678875846,1.11279,1796.7,1796.6,3.2078]
[1745678876155,2.80019,1796.7,1796.6,3.2078]
[1745678876454,1.11285,1796.6,1796.5,3.56921]
[1745678876956,1.11285,1796.6,1796.5,6.77701]
[1745678877757,1.11285,1796.6,1796.5,5.6641]
[1745678878459,1.11285,1796.6,1796.5,6.77701]
[1745678879353,2.80023,1796.7,1796.5,6.77701]
[1745678879554,2.80023,1796.7,1796.6,1.6797]
[1745678879754,1.11285,1796.6,1796.5,3.2078]
[1745678879955,1.11291,1796.5,1796.4,0.8441]
[1745678880257,1.11298,1796.4,1796.3,3.695]
[1745678880458,1.11298,1796.4,1796.3,6.1844]
[1745678881355,1.11298,1796.4,1796.3,3.695]
[1745678881556,2.79878,1796.4,1796.3,3.695]
[1745678882256,2.78276,1796.2,1795.7,6.9028]
[1745678882458,1.11329,1795.9,1795.8,1.5813]
[1745678887760,1.11335,1795.8,1795.7,8.5595]
[1745678888060,1.11347,1795.6,1795.5,8.5845]
[1745678888267,1.11347,1795.6,1795.5,9.3873]
[1745678888467,2.78155,1795.7,1795.5,10.50083]
[1745678888666,1.6681,1795.7,1795.6,2.79517]
[1745678888854,1.6681,1795.7,1795.6,3.62857]
[1745678889058,2.78151,1795.7,1795.6,2.5151]
[1745678890065,1.11331,1795.9,1795.6,2.5151]
[1745678890267,1.1133,1795.9,1795.7,4.8895]
[1745678890468,1.1133,1795.9,1795.8,1.6817]
[1745678890667,2.4751,1796.0,1795.8,2.79503]
[1745678890868,1.11329,1795.9,1795.8,1.6817]
[1745678891662,2.82849,1795.9,1795.8,1.6817]
[1745678892364,1.11335,1795.8,1795.7,3.2078]
[1745678892570,1.11341,1795.7,1795.6,2.4286]
[1745678892766,1.11341,1795.7,1795.6,1.5952]
[1745678892968,2.75351,1795.7,1795.6,1.5952]
[1745678893168,1.1136,1795.4,1795.3,0.7918]
[1745678893368,1.11366,1795.3,1795.2,5.2892]
[1745678893571,2.82886,1795.3,1795.2,5.2892]
[1745678893874,2.82886,1795.3,1795.2,3.694]
[1745678894671,1.11366,1795.3,1795.2,5.344]
[1745678895774,2.78746,1795.3,1795.2,5.344]
[1745678897066,2.78746,1795.3,1795.2,3.694]
[1745678897272,3.57856,1795.3,1795.2,3.694]
[1745678900171,8.88656,1795.3,1795.2,3.694]
[1745678901076,1.11372,1795.2,1795.1,3.2078]
[1745678901276,7.7729,1795.3,1795.1,3.2078]
[1745678901277,8.88658,1795.3,1795.1,5.94136]
[1745678901580,8.88658,1795.3,1795.2,1.6198]
[1745678902077,3.57858,1795.3,1795.2,1.6198]
[1745678902577,2.78748,1795.3,1795.2,2.4447]
[1745678905170,7.66579,1795.3,1794.9,6.9028]
[1745678905377,1.11384,1795.0,1794.9,6.9028]
[1745678905572,1.11384,1795.0,1794.9,8.6446]
[1745678905774,1.11384,1795.0,1794.9,3.695]
[1745678906079,1.11403,1794.7,1794.6,6.2744]
[1745678906382,1.11402,1794.8,1794.6,7.1167]
[1745678906582,1.11402,1794.8,1794.7,1.6339]
[1745678907081,1.11403,1794.7,1794.6,3.696]
[1745678907283,3.69113,1794.7,1794.6,3.696]
[1745678907681,1.11415,1794.5,1794.4,1.6339]
[1745678908284,2.85294,1794.6,1794.4,1.6339]
[1745678908486,1.7388,1794.6,1794.4,2.74808]
[1745678908787,1.95237,1794.7,1794.4,2.74808]
[1745678908991,3.69117,1794.7,1794.5,1.6339]
[1745678909486,1.11403,1794.7,1794.5,2.74805]
[1745678909685,1.11403,1794.7,1794.6,0.8216]
[1745678909875,1.11403,1794.7,1794.6,2.4971]
[1745678910275,3.2078,1794.9,1794.6,2.4971]
[1745678910582,1.11397,1794.8,1794.7,2.5396]
[1745678915297,2.75275,1794.9,1794.7,3.65359]
[1745678915494,2.75275,1794.9,1794.8,1.6386]
[1745678916893,1.11397,1794.8,1794.7,0.8641]
[1745678917097,1.11403,1794.7,1794.6,7.7254]
[1745678917402,1.11403,1794.7,1794.6,6.9038]
[1745678917709,1.94683,1794.7,1794.6,3.696]
[1745678917896,1.11409,1794.6,1794.4,6.80187]
[1745678918097,1.94689,1794.7,1794.5,2.75275]
[1745678918403,1.94689,1794.7,1794.6,1.6745]
[1745678918906,2.79749,1794.8,1794.6,5.99639]
[1745678919300,2.79749,1794.8,1794.7,2.4933]
[1745678921803,1.11399,1794.8,1794.7,2.4933]
[1745678922100,2.83779,1794.8,1794.7,2.4933]
[1745678922994,1.7238,1794.8,1794.7,3.60733]
[1745678923200,1.97053,1794.9,1794.7,3.60733]
[1745678923404,1.97053,1794.9,1794.8,2.4771]
[1745678923597,1.7238,1795.0,1794.9,1.11391]
[1745678923792,4.3216,1795.1,1794.9,1.6404]
[1745678923998,1.11384,1795.0,1794.9,1.6404]
[1745678925002,2.75644,1795.0,1794.9,1.6404]
[1745678925203,8.06444,1795.0,1794.9,1.6404]
[1745678929096,1.11391,1794.9,1794.8,4.0445]
[1745678929296,1.11391,1794.9,1794.8,5.749]
[1745678929297,3.58301,1794.9,1794.8,5.749]
[1745678929594,3.58301,1794.9,1794.8,2.5412]
[1745678930508,3.58301,1794.9,1794.8,5.749]
[1745678931107,6.85034,1795.2,1794.8,5.749]
[1745678931108,4.066,1795.2,1794.8,5.749]
[1745678931307,3.56774,1795.1,1794.9,2.84801]
[1745678931607,3.56774,1795.1,1795.0,1.7341]
[1745678931901,3.56774,1795.1,1795.0,2.5794]
[1745678932205,0.8582,1795.2,1795.0,2.5794]
[1745678932405,4.42587,1795.2,1795.1,1.7341]
[1745678933501,3.3121,1795.2,1795.1,1.7341]
[1745678933801,5.308,1795.3,1795.1,1.7341]
[1745678934001,7.7895,1795.3,1795.1,2.84784]
[1745678934197,2.4815,1795.3,1795.2,0.852]
[1745678934403,2.4815,1795.3,1795.2,2.5057]
[1745678934595,3.59516,1795.3,1795.2,2.5057]
[1745678935212,0.8337,1795.3,1795.2,3.61942]
[1745678935403,1.94736,1795.3,1795.2,2.5057]
[1745678942712,0.8337,1795.3,1795.2,3.61942]
[1745678943010,1.94736,1795.3,1795.2,2.5057]
[1745678943613,0.7986,1795.5,1795.2,5.7135]
[1745678943804,1.1136,1795.4,1795.3,2.5326]
[1745678944206,1.94588,1795.5,1795.3,3.64626]
[1745678944413,1.94588,1795.5,1795.4,1.7387]
[1745678944814,2.82082,1795.6,1795.4,2.8523]
[1745678945213,8.12882,1795.6,1795.5,1.7387]
[1745678947216,8.12882,1795.6,1795.2,3.2078]
[1745678947217,12.0153,1795.6,1795.2,3.2078]
[1745678947409,1.11386,1795.0,1794.9,3.2593]
[1745678947602,1.11382,1795.1,1794.9,3.2593]
[1745678947807,1.11382,1795.1,1795.0,1.5758]
[1745678948613,2.70517,1795.2,1795.0,2.68962]
[1745678948816,1.11378,1795.1,1795.0,1.5758]
[1745678949118,1.11378,1795.1,1794.9,1.6835]
[1745678949819,1.11378,1795.1,1794.9,2.79741]
[1745678951320,1.11384,1795.0,1794.9,1.6835]
[1745678951615,1.11384,1795.0,1794.9,0.8334]
[1745678952211,6.42184,1795.0,1794.9,0.8334]
[1745678952518,2.78477,1794.9,1794.0,6.9028]
[1745678952718,3.2078,1794.3,1794.0,5.3585]
[1745678952920,1.1144,1794.1,1794.0,5.3585]
[1745678953414,1.1143,1794.3,1794.0,5.3585]
[1745678953618,1.98316,1794.4,1794.1,1.11438]
[1745678953818,3.62846,1794.4,1794.1,1.11438]
[1745678954120,3.2078,1794.5,1794.3,1.11424]
[1745678954412,3.2078,1794.5,1794.4,2.77772]
[1745678955317,1.11401,1794.8,1794.6,1.11406]
[1745678955515,0.8461,1794.9,1794.7,0.7906]
[1745678955922,1.11397,1794.8,1794.7,0.7906]
[1745678957415,0.8461,1794.9,1794.6,3.2078]
[1745678957720,1.11403,1794.7,1794.6,3.2078]
[1745678958119,1.11415,1794.5,1794.4,0.804]
[1745678958424,1.11422,1794.4,1794.3,7.6934]
[1745678958621,2.83262,1794.4,1794.3,7.6934]
[1745678959323,8.14062,1794.4,1794.3,7.6934]
[1745678960219,2.83262,1794.4,1794.3,7.6934]
[1745678962418,1.11416,1794.5,1794.3,8.80764]
[1745678962624,1.11416,1794.5,1794.4,0.7954]
[1745678964723,2.85894,1794.6,1794.4,1.90962]
[1745678964918,1.11414,1794.6,1794.4,1.90962]
[1745678965121,0.8277,1794.7,1794.4,0.7954]
[1745678965323,3.61298,1794.7,1794.5,1.11414]
[1745678965716,1.11409,1794.6,1794.4,1.90957]
[1745678966331,2.4989,1794.7,1794.4,0.7954]
[1745678966520,1.11403,1794.8,1794.6,1.11409]
[1745678966720,1.11403,1794.8,1794.7,0.7912]
[1745678967232,6.42203,1794.8,1794.7,0.7912]
[1745678967529,6.42203,1794.8,1794.7,1.6953]
[1745678967724,8.11273,1794.8,1794.7,1.6953]
[1745678967924,1.11403,1794.7,1794.6,0.8492]
[1745678968424,2.80473,1794.7,1794.6,0.8492]
[1745678968625,1.11403,1794.7,1794.6,2.5445]
[1745678969633,1.11415,1794.5,1794.4,0.7954]
[1745678969828,2.80484,1794.6,1794.4,7.66192]
[1745678970030,2.80484,1794.6,1794.5,1.7061]
[1745678970226,1.11414,1794.6,1794.5,1.7061]
[1745678973732,1.90874,1794.6,1794.5,1.7061]
[1745678976029,2.72414,1794.6,1794.5,1.7061]
[1745678978133,1.90874,1794.6,1794.5,1.7061]
[1745678978530,1.11414,1794.6,1794.5,1.7061]
[1745678978736,2.73439,1794.7,1794.5,2.82024]
[1745678979137,2.73439,1794.7,1794.6,1.7259]
[1745678980332,8.04239,1794.7,1794.6,1.7259]
[1745678982631,6.42209,1794.7,1794.6,1.7259]
[1745678983137,1.11409,1794.7,1794.6,1.7259]
[1745678983338,2.76949,1794.7,1794.6,1.7259]
[1745678984135,1.11415,1794.5,1794.4,4.8524]
[1745678984937,1.97175,1794.5,1794.4,7.69682]
[1745678985832,2.76954,1794.6,1794.4,7.69682]
[1745678986035,2.76954,1794.6,1794.5,1.656]
[1745678990433,1.11402,1794.8,1794.6,1.11406]
[1745678990640,1.11402,1794.8,1794.7,1.7476]
[1745678990938,1.11402,1794.8,1794.7,2.5428]
[1745678991140,6.42202,1794.8,1794.7,2.5428]
[1745678991945,6.42202,1794.8,1794.7,3.65683]
[1745678992247,1.11402,1794.8,1794.7,3.65683]
[1745678992544,1.11402,1794.8,1794.7,2.5428]
[1745678992944,1.11402,1794.8,1794.7,3.65683]
[1745678993146,2.82862,1794.8,1794.7,3.65683]
[1745678993442,1.7146,1794.8,1794.7,3.65683]
[1745678993648,1.11388,1795.0,1794.8,1.11397]
[1745678993945,2.5375,1795.1,1794.9,4.8494]
[1745678994135,6.42175,1795.2,1795.0,2.75544]
[1745678994335,7.24465,1795.2,1795.1,2.5073]
[1745678994950,8.98355,1795.2,1795.1,2.5073]
[1745678995439,8.98355,1795.2,1795.1,1.6416]
[1745678997147,3.67555,1795.2,1795.1,1.6416]
[1745679000158,8.98355,1795.2,1795.1,1.6416]
[1745679002047,5.308,1795.2,1795.1,2.75538]
[1745679002246,1.11372,1795.2,1795.1,1.6416]
[1745679002447,2.84632,1795.2,1795.1,1.6416]
[1745679003553,1.7326,1795.2,1795.1,2.75538]
[1745679003944,2.84632,1795.2,1795.1,1.6416]
[1745679004141,2.84632,1795.2,1795.1,2.75538]
[1745679004549,2.84632,1795.2,1795.1,1.6416]
[1745679004749,2.84632,1795.2,1795.1,2.75538]
[1745679004943,1.7326,1795.2,1795.1,2.75538]
[1745679006244,2.84632,1795.2,1795.1,2.75538]
[1745679006445,1.7326,1795.2,1795.1,2.75538]
[1745679007147,2.84632,1795.2,1795.1,1.6416]
[1745679007542,2.84632,1795.2,1795.1,2.75538]
[1745679007744,1.7326,1795.2,1795.1,2.75538]
[1745679008550,1.98635,1795.4,1795.2,1.11371]
[1745679008847,1.98635,1795.4,1795.3,1.7442]
[1745679009049,8.93035,1795.4,1795.3,1.7442]
[1745679009742,8.93035,1795.4,1795.3,2.85786]
[1745679009951,6.4216,1795.4,1795.3,6.91056]
[1745679010149,6.1276,1795.4,1795.3,6.91056]
[1745679010448,5.308,1795.4,1795.3,6.91056]
[1745679010856,6.4216,1795.4,1795.3,6.91056]
[1745679011149,1.1136,1795.4,1795.3,6.91056]
[1745679011349,1.6664,1795.5,1795.3,6.91056]
[1745679011350,2.77998,1795.5,1795.3,6.91056]
[1745679011550,2.77998,1795.5,1795.4,1.7056]
[1745679012940,1.11372,1795.2,1795.1,3.2078]
[1745679013257,1.11384,1795.0,1794.9,3.2078]
[1745679013843,1.11384,1795.0,1794.9,4.8433]
[1745679013844,1.59,1795.0,1794.9,4.8433]
[1745679014152,2.70384,1795.0,1794.9,4.8433]
[1745679014950,2.70384,1795.0,1794.9,3.2078]
[1745679015452,1.11397,1794.8,1794.7,1.6355]
[1745679016151,7.26867,1794.8,1794.7,1.6355]
[1745679017148,1.11415,1794.5,1794.4,3.2078]
[1745679017355,1.11428,1794.3,1794.2,1.6933]
[1745679018650,1.1144,1794.1,1794.0,5.3863]
[1745679018844,2.77168,1794.2,1794.0,5.3863]
[1745679019144,1.11442,1794.1,1793.9,1.11452]
[1745679019353,2.77172,1794.1,1794.0,1.6047]
[1745679019545,1.6573,1794.1,1794.0,1.6047]
[1745679020353,1.11436,1794.2,1794.0,2.71917]
[1745679020754,1.11436,1794.2,1794.1,1.6047]
[1745679021253,6.42236,1794.2,1794.1,1.6047]
[1745679021652,7.23576,1794.2,1794.1,1.6047]
[1745679021852,6.1214,1794.2,1794.1,1.6047]
[1745679022050,7.23574,1794.2,1794.1,1.6047]
[1745679024253,6.1214,1794.2,1793.8,1.7009]
[1745679024458,1.11453,1793.9,1793.8,1.7009]
[1745679025161,1.11459,1793.8,1793.7,3.693]
[1745679025360,1.11465,1793.7,1793.5,5.97688]
[1745679025560,4.8885,1794.0,1793.6,1.679]
[1745679025754,1.11465,1793.7,1793.5,6.5411]
[1745679026259,1.11465,1793.7,1793.6,1.679]
[1745679026459,1.11471,1793.6,1793.5,4.8621]
[1745679026658,5.3661,1793.9,1793.5,4.8868]
[1745679026958,5.3661,1793.9,1793.5,6.00157]
[1745679027154,1.11462,1793.8,1793.6,2.4769]
[1745679027348,1.11462,1793.8,1793.7,1.679]
[1745679028053,7.29519,1793.9,1793.7,4.8868]
[1745679028260,1.98719,1793.9,1793.7,3.63935]
[1745679028454,1.98719,1793.9,1793.8,1.6109]
[1745679029059,1.11459,1793.8,1793.7,3.2078]
[1745679030154,6.42259,1793.8,1793.7,3.2078]
[1745679030958,6.42259,1793.8,1793.7,4.9048]
[1745679032561,5.308,1793.8,1793.7,4.9048]
[1745679032858,6.42259,1793.8,1793.7,4.9048]
[1745679033172,1.11459,1793.8,1793.7,4.9048]
[1745679034869,1.98718,1793.9,1793.7,4.9048]
[1745679035065,1.98713,1793.9,1793.8,1.678]
[1745679036271,7.29513,1793.9,1793.8,1.678]
[1745679036778,1.11459,1793.8,1793.7,3.2078]
[1745679037272,6.42259,1793.8,1793.7,3.2078]
[1745679037475,8.06049,1793.8,1793.7,3.2078]
[1745679037666,8.06049,1793.8,1793.7,4.9123]
[1745679038162,5.308,1793.8,1793.7,4.9123]
[1745679038368,6.42259,1793.8,1793.7,4.9123]
[1745679039274,1.11459,1793.8,1793.7,4.9123]
[1745679044580,2.83459,1793.8,1793.7,4.9123]
[1745679045172,8.14259,1793.8,1793.7,4.9123]
[1745679046775,8.14259,1793.8,1793.7,1.7045]
[1745679046980,8.14259,1793.8,1793.4,6.9018]
[1745679046981,1.11478,1793.5,1793.4,6.9018]
[1745679047186,1.11478,1793.5,1793.4,3.694]
[1745679047379,1.11484,1793.4,1793.2,6.5615]
[1745679047681,1.11483,1793.5,1793.3,1.712]
[1745679048181,1.11483,1793.5,1793.3,2.82689]
[1745679048182,2.74593,1793.5,1793.3,2.82689]
[1745679048378,0.8515,1793.6,1793.3,1.712]
[1745679048580,6.80503,1793.8,1793.5,1.11478]
[1745679048779,6.80503,1793.8,1793.6,3.3537]
[1745679048981,6.80503,1793.8,1793.7,1.712]
[1745679049280,12.11303,1793.8,1793.7,1.712]
[1745679051282,8.5158,1793.8,1793.7,1.712]
[1745679051476,9.63039,1793.8,1793.7,1.712]
[1745679051676,9.63039,1793.8,1793.7,2.82665]
[1745679051677,8.5158,1793.8,1793.7,2.82665]
[1745679052176,3.2078,1793.8,1793.7,2.82665]
[1745679052684,4.32239,1793.8,1793.7,1.712]
[1745679054182,9.63039,1793.8,1793.7,1.712]
[1745679055786,5.308,1793.8,1793.7,2.82665]
[1745679056179,1.11457,1793.9,1793.7,1.712]
[1745679056377,1.11457,1793.9,1793.8,1.727]
[1745679057485,2.83257,1793.9,1793.8,1.727]
[1745679059886,1.11465,1793.7,1793.6,1.6417]
[1745679060686,1.11465,1793.7,1793.5,1.6227]
[1745679060687,1.11471,1793.6,1793.5,1.6227]
[1745679060887,2.74591,1793.6,1793.5,1.6227]
[1745679061388,1.11471,1793.6,1793.5,1.6227]
[1745679061580,2.69581,1793.6,1793.5,1.6227]
[1745679062589,1.1146,1793.8,1793.5,1.6227]
[1745679062782,1.1146,1793.8,1793.6,1.1147]
[1745679063089,1.1146,1793.8,1793.7,1.6126]
[1745679063887,2.6957,1793.8,1793.7,1.6126]
[1745679064090,8.0037,1793.8,1793.7,1.6126]
[1745679065090,2.6957,1793.8,1793.7,1.6126]
[1745679066094,8.0037,1793.8,1793.7,1.6126]
[1745679067187,6.4226,1793.8,1793.7,1.6126]